Workbook

Sheet Лист1
A2: групы и команды | B2: МУСКУ | C2: место в рейтинге | D2: рейтинг
A3: Группа 1 в середньму по групе | B3: =(B4+B5+B6+B7)/4 -> 1733.75 | C3: =(C4+C5+C6+C7)/4 -> 34.5 | D3: 67.991
A4: Централ Юнайтед | B4: 1761 | C4: 8 | D4: 112.212
A5: Сидней Олимпик | B5: 1749 | C5: 12 | D5: 93.204
A6: Сенкуронг | B6: 1737 | C6: 41 | D6: 45.031
A7: Металлург Бекабад | B7: 1688 | C7: 77 | D7: 21.517
A8: сумма групи: | B8: =SUM(B4:B7) -> 6935 | C8: =SUM(C4:C7) -> 138 | D8: =SUM(D4:D7) -> 271.964
A10: Группа 2 в середньму по групе | B10: =(B11+B12+B13+B14)/4 -> 1765.25 | C10: =(C11+C12+C13+C14)/4 -> 33 | D10: 72.49475
A11: Шеньянг Гинде | B11: 1761 | C11: 6 | D11: 114.9
A12: Пелита Кракатау Стил | B12: 1828 | C12: 18 | D12: 86.85
A13: Теро Сасана | B13: 1738 | C13: 25 | D13: 68.729
A14: Кеда | B14: 1734 | C14: 83 | D14: 19.5
A15: сумма групи: | B15: =SUM(B11:B14) -> 7061 | C15: =SUM(C11:C14) -> 132 | D15: =SUM(D11:D14) -> 289.979
A17: Группа 3 в середньму по групе | B17: =(B18+B19+B20+B21)/4 -> 1760 | C17: =(C18+C19+C20+C21)/4 -> 31.75 | D17: 65.763
A18: Фенсайблс Юнайтед | B18: 1786 | C18: 9 | D18: 108.212
A19: Харбин Гуоли | B19: 1749 | C19: 24 | D19: 69.9
A20: АйФК | B20: 1763 | C20: 30 | D20: 59.199
A21: Йедзин Ф.К. | B21: 1742 | C21: 64 | D21: 25.741
A22: сумма групи: | B22: =SUM(B18:B21) -> 7040 | C22: =SUM(C18:C21) -> 127 | D22: =SUM(D18:D21) -> 263.052
A24: Группа 4 в середньму по групе | B24: =(B25+B26+B27+B28)/4 -> 1767 | C24: =(C25+C26+C27+C28)/4 -> 28.25 | D24: 76.729
A25: Васко | B25: 1846 | C25: 5 | D25: 138.247
A26: Поханг Стилерс | B26: 1752 | C26: 13 | D26: 92.121
A27: Нефтчи | B27: 1707 | C27: 38 | D27: 46.517
A28: К.А.Ф. | B28: 1763 | C28: 57 | D28: 30.031
A29: сумма групи: | B29: =SUM(B25:B28) -> 7068 | C29: =SUM(C25:C28) -> 113 | D29: =SUM(D25:D28) -> 306.916
A41: Группа 5 в середньму по групе | B41: =(B42+B43+B44+B45)/4 -> 1743 | C41: =(C42+C43+C44+C45)/4 -> 24 | D41: 86.1455
A42: Урава Рэд Даймондс | B42: 1836 | C42: 2 | D42: 159.01
A43: Уоллонгонг Ф.К. | B43: 1720 | C43: 14 | D43: 89.204
A44: Бусан Айпарк | B44: 1701 | C44: 27 | D44: 65.121
A45: Джагаджит Коттон Майлс | B45: 1715 | C45: 53 | D45: 31.247
A46: сумма групи: | B46: =SUM(B42:B45) -> 6972 | C46: =SUM(C42:C45) -> 96 | D46: =SUM(D42:D45) -> 344.582
A48: Группа 6 в середньму по групе | B48: =(B49+B50+B51+B52)/4 -> 1752.25 | C48: =(C49+C50+C51+C52)/4 -> 36.5 | D48: 78.74825
A49: ДжЕФ Юнайтед | B49: 1776 | C49: 1 | D49: 166.01
A50: Бруней Армд Форсес | B50: 1781 | C50: 16 | D50: 87.031
A51: Престон Лайонс | B51: 1729 | C51: 44 | D51: 43.204
A52: Те Ау О Тонга | B52: 1723 | C52: 85 | D52: 18.748
A53: сумма групи: | B53: =SUM(B49:B52) -> 7009 | C53: =SUM(C49:C52) -> 146 | D53: =SUM(D49:D52) -> 314.993
A55: Группа 7 в середньму по групе | B55: =(B56+B57+B58+B59)/4 -> 1723 | C55: =(C56+C57+C58+C59)/4 -> 40.5 | D55: 57.98625
A56: Малаван | B56: 1756 | C56: 10 | D56: 98.507
A57: Персиб | B57: 1732 | C57: 22 | D57: 72.85
A58: Умайя | B58: 1720 | C58: 42 | D58: 43.554
A59: Гвардия РУОР | B59: 1684 | C59: 88 | D59: 17.034
A60: сумма групи: | B60: =SUM(B56:B59) -> 6892 | C60: =SUM(C56:C59) -> 162 | D60: =SUM(D56:D59) -> 231.945
A62: Группа 8 в середньму по групе | B62: =(B63+B64+B65+B66)/4 -> 1714.25 | C62: =(C63+C64+C65+C66)/4 -> 41.25 | D62: 71.67775
A63: Йокогама Ф Маринос | B63: 1773 | C63: 4 | D63: 139.01
A64: Сичуан Гуанченг | B64: 1666 | C64: 23 | D64: 71.9
A65: Аль-Джайш Дамаск | B65: 1750 | C65: 28 | D65: 63.554
A66: Пунжаб Полис | B66: 1668 | C66: 110 | D66: 12.247
A67: сумма групи: | B67: =SUM(B63:B66) -> 6857 | C67: =SUM(C63:C66) -> 165 | D67: =SUM(D63:D66) -> 286.711

Sheet Лист2

Sheet Лист3
